[Event "*** MasterClass Titled Tuesday Blitz"]
[Site "Chess.com"]
[Date "2017.07.04"]
[Round "3"]
[White "MITerryble"]
[Black "rasmussvane"]
[Result "1-0"]
[WhiteElo "2638"]
[BlackElo "2510"]
[TimeControl "180+2"]
[EndTime "13:39:54 PDT"]
[Termination "MITerryble won by resignation"]

1. d4 {[%clk 0:03:01.9]} 1... Nf6 {[%clk 0:03:00.4]} 2. Nf3 {[%clk 0:03:03]}
2... d5 {[%clk 0:03:01.2]} 3. c4 {[%clk 0:03:04]} 3... e6 {[%clk 0:03:02.3]} 4.
e3 {[%clk 0:03:04.7]} 4... a6 {[%clk 0:03:02.7]} 5. b3 {[%clk 0:03:03.1]} 5...
c5 {[%clk 0:03:03.5]} 6. dxc5 {[%clk 0:03:02.1]} 6... Bxc5 {[%clk 0:03:02.6]} 7.
a3 {[%clk 0:03:03.4]} 7... O-O {[%clk 0:03:03]} 8. Bb2 {[%clk 0:03:04]} 8... Nc6
{[%clk 0:03:02.2]} 9. b4 {[%clk 0:03:03.7]} 9... Ba7 {[%clk 0:02:56.1]} 10. Nbd2
{[%clk 0:02:55.9]} 10... dxc4 {[%clk 0:02:26]} 11. Nxc4 {[%clk 0:02:56.1]} 11...
Qe7 {[%clk 0:02:17.3]} 12. Qd6 {[%clk 0:02:54.4]} 12... Rd8 {[%clk 0:02:15.9]}
13. Qxe7 {[%clk 0:02:53.5]} 13... Nxe7 {[%clk 0:02:17.8]} 14. Be2 {[%clk
0:02:44.3]} 14... Bd7 {[%clk 0:02:18.6]} 15. Na5 {[%clk 0:02:38.6]} 15... b6
{[%clk 0:02:13.2]} 16. Nb7 {[%clk 0:02:39.7]} 16... Rdb8 {[%clk 0:02:10]} 17.
Nd6 {[%clk 0:02:33.5]} 17... a5 {[%clk 0:02:06.2]} 18. Ne5 {[%clk 0:02:08.4]}
18... Be8 {[%clk 0:01:38.3]} 19. O-O {[%clk 0:01:55.2]} 19... Rd8 {[%clk
0:01:37.4]} 20. Nxe8 {[%clk 0:01:51.6]} 20... Nxe8 {[%clk 0:01:36.9]} 21. Rfd1
{[%clk 0:01:46.4]} 21... f6 {[%clk 0:01:27]} 22. Nc4 {[%clk 0:01:44]} 22...
Rxd1+ {[%clk 0:01:18.3]} 23. Rxd1 {[%clk 0:01:44.4]} 23... axb4 {[%clk
0:01:13.8]} 24. axb4 {[%clk 0:01:46.3]} 24... Nd5 {[%clk 0:01:07.2]} 25. b5
{[%clk 0:01:37.2]} 25... Rc8 {[%clk 0:01:07.7]} 26. e4 {[%clk 0:01:30.5]} 26...
Ndc7 {[%clk 0:01:00]} 27. Rd7 {[%clk 0:01:21.5]} 27... Nxb5 {[%clk 0:00:53.8]}
28. Ne3 {[%clk 0:01:22.5]} 28... Nec7 {[%clk 0:00:50]} 29. g4 {[%clk 0:01:24.1]}
29... Bb8 {[%clk 0:00:50.3]} 30. g5 {[%clk 0:01:25.2]} 30... Rf8 {[%clk
0:00:19.1]} 31. gxf6 {[%clk 0:01:22.7]} 31... gxf6 {[%clk 0:00:21]} 32. Ng4
{[%clk 0:01:24]} 32... e5 {[%clk 0:00:22.1]} 33. Bc4+ {[%clk 0:01:04.5]} 33...
Kh8 {[%clk 0:00:22.2]} 34. Nxf6 {[%clk 0:01:05.6]} 34... Rxf6 {[%clk 0:00:22.4]}
35. Bxe5 {[%clk 0:01:05.6]} 35... Ne8 {[%clk 0:00:19.2]} 36. Bxf6+ {[%clk
0:01:03.6]} 36... Nxf6 {[%clk 0:00:20.1]} 37. Rd8+ {[%clk 0:01:04.6]} 37... Kg7
{[%clk 0:00:21.4]} 38. Bxb5 {[%clk 0:00:56.3]} 38... Bf4 {[%clk 0:00:22.1]} 39.
f3 {[%clk 0:00:50.6]} 39... h5 {[%clk 0:00:23]} 40. Kg2 {[%clk 0:00:51.4]} 40...
h4 {[%clk 0:00:23.7]} 41. Kh3 {[%clk 0:00:51.7]} 41... Kg6 {[%clk 0:00:24.5]}
42. Kxh4 {[%clk 0:00:47.7]} 42... Bxh2 {[%clk 0:00:25.4]} 43. Bd3 {[%clk
0:00:39.9]} 43... Kf7 {[%clk 0:00:24]} 44. Kg5 {[%clk 0:00:40.2]} 44... Ke7
{[%clk 0:00:24.1]} 45. Ra8 {[%clk 0:00:39.9]} 45... Nd7 {[%clk 0:00:19.1]} 46.
Kf5 {[%clk 0:00:36.3]} 46... Nc5 {[%clk 0:00:19.9]} 47. Bc4 {[%clk 0:00:37.1]}
47... Kd6 {[%clk 0:00:15.8]} 48. f4 {[%clk 0:00:35.2]} 48... Kc6 {[%clk
0:00:16.4]} 49. Rc8+ {[%clk 0:00:33.1]} 49... Kb7 {[%clk 0:00:16.7]} 50. Rh8
{[%clk 0:00:35]} 50... Bg1 {[%clk 0:00:16.2]} 51. e5 {[%clk 0:00:36]} 51... Kc6
{[%clk 0:00:17.2]} 52. Rh6+ {[%clk 0:00:36.7]} 52... Kc7 {[%clk 0:00:17.9]} 53.
Bb5 {[%clk 0:00:33]} 53... Be3 {[%clk 0:00:17.1]} 54. Rc6+ {[%clk 0:00:33.5]}
54... Kb7 {[%clk 0:00:15.7]} 55. Rd6 {[%clk 0:00:34.7]} 55... Kc7 {[%clk
0:00:16]} 56. Kg4 {[%clk 0:00:35.9]} 56... Bc1 {[%clk 0:00:08.7]} 57. Rc6+
{[%clk 0:00:30.7]} 57... Kd8 {[%clk 0:00:08.4]} 58. Rxb6 {[%clk 0:00:30.7]}
58... Ne4 {[%clk 0:00:09.4]} 59. e6 {[%clk 0:00:25.1]} 59... Ke7 {[%clk
0:00:09.7]} 60. f5 {[%clk 0:00:23.6]} 60... Nf6+ {[%clk 0:00:08.6]} 61. Kf3
{[%clk 0:00:24.5]} 61... Ba3 {[%clk 0:00:05.7]} 62. Rb7+ {[%clk 0:00:25.4]}
62... Kd6 {[%clk 0:00:06.8]} 63. e7 {[%clk 0:00:26]} 1-0

[Event "*** MasterClass Titled Tuesday Blitz"]
[Site "Chess.com"]
[Date "2017.07.04"]
[Round "3"]
[White "Grootneus"]
[Black "Ez_Chess2016"]
[Result "0-1"]
[WhiteElo "2068"]
[BlackElo "1984"]
[TimeControl "180+2"]
[EndTime "13:39:54 PDT"]
[Termination "Ez_Chess2016 won by checkmate"]

1. e4 {[%clk 0:03:01.9]} 1... c5 {[%clk 0:03:00]} 2. b4 {[%clk 0:03:00.9]} 2...
cxb4 {[%clk 0:02:59.5]} 3. a3 {[%clk 0:03:01.9]} 3... d5 {[%clk 0:02:58.3]} 4.
exd5 {[%clk 0:03:03.8]} 4... Qxd5 {[%clk 0:03:00.2]} 5. axb4 {[%clk 0:02:58.8]}
5... Qe5+ {[%clk 0:02:58.6]} 6. Be2 {[%clk 0:02:43]} 6... Qxa1 {[%clk
0:03:00.5]} 7. Nc3 {[%clk 0:02:42.5]} 7... Nf6 {[%clk 0:02:54.9]} 8. Nf3 {[%clk
0:02:43.1]} 8... e6 {[%clk 0:02:55.2]} 9. O-O {[%clk 0:02:42.8]} 9... Bxb4
{[%clk 0:02:55.4]} 10. Nb5 {[%clk 0:02:39.3]} 10... Na6 {[%clk 0:02:52.8]} 11.
c3 {[%clk 0:02:38.9]} 11... Be7 {[%clk 0:02:52.1]} 12. Qb3 {[%clk 0:02:28.2]}
12... Nc5 {[%clk 0:02:46.5]} 13. Qc4 {[%clk 0:02:17]} 13... O-O {[%clk
0:02:44.9]} 14. Ba3 {[%clk 0:02:14.5]} 14... Qxf1+ {[%clk 0:02:34.8]} 15. Bxf1
{[%clk 0:02:16.4]} 15... b6 {[%clk 0:02:33.4]} 16. d4 {[%clk 0:02:12.4]} 16...
Bb7 {[%clk 0:02:05.8]} 17. dxc5 {[%clk 0:02:07.3]} 17... Bxf3 {[%clk 0:02:05.2]}
18. gxf3 {[%clk 0:02:08]} 18... Bxc5 {[%clk 0:01:49.5]} 19. Bxc5 {[%clk
0:02:08.6]} 19... Rfc8 {[%clk 0:01:50.8]} 20. Qh4 {[%clk 0:01:31.8]} 20... Rxc5
{[%clk 0:01:49.3]} 21. Bd3 {[%clk 0:01:27.3]} 21... a6 {[%clk 0:01:21.5]} 22.
Nd6 {[%clk 0:01:07.3]} 22... Rd5 {[%clk 0:01:18.4]} 23. Ne4 {[%clk 0:00:51.4]}
23... Rxd3 {[%clk 0:01:08.2]} 24. Nxf6+ {[%clk 0:00:52.7]} 24... gxf6 {[%clk
0:01:10.1]} 25. Qxf6 {[%clk 0:00:54.6]} 25... Rd5 {[%clk 0:01:10.5]} 26. f4
{[%clk 0:00:49.3]} 26... Rad8 {[%clk 0:01:00]} 27. Kg2 {[%clk 0:00:48.3]} 27...
R8d7 {[%clk 0:00:48.1]} 28. h4 {[%clk 0:00:30.9]} 28... h5 {[%clk 0:00:41.5]}
29. c4 {[%clk 0:00:27.7]} 29... Rf5 {[%clk 0:00:34.4]} 30. Qb2 {[%clk
0:00:28.1]} 30... b5 {[%clk 0:00:32.2]} 31. Qa1 {[%clk 0:00:18.4]} 31... bxc4
{[%clk 0:00:17.7]} 32. Qxa6 {[%clk 0:00:18]} 32... Rdd5 {[%clk 0:00:15.2]} 33.
Qxc4 {[%clk 0:00:15.2]} 33... Kg7 {[%clk 0:00:16.3]} 34. Qc3+ {[%clk 0:00:15.8]}
34... Kg6 {[%clk 0:00:16.6]} 35. Kg3 {[%clk 0:00:17.4]} 35... Rf6 {[%clk
0:00:17.5]} 36. Qc2+ {[%clk 0:00:17.7]} 36... Rdf5 {[%clk 0:00:18.7]} 37. f3
{[%clk 0:00:17.2]} 37... Kh6 {[%clk 0:00:19.4]} 38. Qe4 {[%clk 0:00:18.3]} 38...
Rxf4 {[%clk 0:00:18.8]} 39. Qe3 {[%clk 0:00:19.1]} 39... Kg6 {[%clk 0:00:19.3]}
40. Qd3+ {[%clk 0:00:20.7]} 40... R4f5 {[%clk 0:00:20]} 41. Kg2 {[%clk
0:00:20.2]} 41... Kg7 {[%clk 0:00:20.3]} 42. Qc3 {[%clk 0:00:20.6]} 42... Rxf3
{[%clk 0:00:21]} 43. Qe5 {[%clk 0:00:21.7]} 43... Rf5 {[%clk 0:00:21.5]} 44. Qe3
{[%clk 0:00:22.2]} 44... Rg6+ {[%clk 0:00:22.2]} 45. Kh3 {[%clk 0:00:22]} 45...
Rgf6 {[%clk 0:00:19.1]} 46. Qd4 {[%clk 0:00:21.3]} 46... Rf3+ {[%clk 0:00:18.8]}
47. Kg2 {[%clk 0:00:22.8]} 47... Rf2+ {[%clk 0:00:19.6]} 48. Kg3 {[%clk
0:00:23.8]} 48... Kg6 {[%clk 0:00:13.4]} 49. Qd3+ {[%clk 0:00:23.9]} 49... R6f5
{[%clk 0:00:13.8]} 50. Qe4 {[%clk 0:00:24.4]} 50... Rf3+ {[%clk 0:00:13.7]} 51.
Kg2 {[%clk 0:00:25.8]} 51... Rf4 {[%clk 0:00:15.1]} 52. Qd3 {[%clk 0:00:25.9]}
52... Rg4+ {[%clk 0:00:15.8]} 53. Kh3 {[%clk 0:00:26]} 53... Kh6 {[%clk
0:00:12.7]} 54. Qe3+ {[%clk 0:00:26.3]} 54... Rgf4 {[%clk 0:00:13.8]} 55. Kg3
{[%clk 0:00:22.4]} 55... e5 {[%clk 0:00:14.2]} 56. Qd2 {[%clk 0:00:20.8]} 56...
Kg6 {[%clk 0:00:14.3]} 57. Qd6+ {[%clk 0:00:21.6]} 57... Rf6 {[%clk 0:00:14.8]}
58. Qxe5 {[%clk 0:00:22.2]} 58... Rf3+ {[%clk 0:00:15.1]} 59. Kg2 {[%clk
0:00:23.6]} 59... Rf2+ {[%clk 0:00:16.4]} 60. Kg3 {[%clk 0:00:24.5]} 60... R6f3#
{[%clk 0:00:16.6]} 0-1

[Event "*** MasterClass Titled Tuesday Blitz"]
[Site "Chess.com"]
[Date "2017.07.04"]
[Round "3"]
[White "ChessNinja48"]
[Black "maheswaran26"]
[Result "1/2-1/2"]
[WhiteElo "2300"]
[BlackElo "2156"]
[TimeControl "180+2"]
[EndTime "13:40:01 PDT"]
[Termination "Game drawn - insufficient material"]

1. d4 {[%clk 0:03:01.9]} 1... Nf6 {[%clk 0:02:54.6]} 2. Nf3 {[%clk 0:03:02.9]}
2... e6 {[%clk 0:02:54.8]} 3. c4 {[%clk 0:03:04]} 3... d5 {[%clk 0:02:54.7]} 4.
Nc3 {[%clk 0:03:05.1]} 4... Bb4 {[%clk 0:02:54.5]} 5. Bg5 {[%clk 0:03:03.6]}
5... Nbd7 {[%clk 0:02:52.7]} 6. e3 {[%clk 0:03:04.8]} 6... c5 {[%clk 0:02:51.8]}
7. Rc1 {[%clk 0:03:02.3]} 7... Qa5 {[%clk 0:02:49.3]} 8. Qb3 {[%clk 0:02:58]}
8... Ne4 {[%clk 0:02:39.5]} 9. Bf4 {[%clk 0:02:43.2]} 9... O-O {[%clk
0:02:32.1]} 10. a3 {[%clk 0:02:36.9]} 10... Bxc3+ {[%clk 0:02:17.3]} 11. bxc3
{[%clk 0:02:38]} 11... cxd4 {[%clk 0:02:06.9]} 12. exd4 {[%clk 0:02:32.5]} 12...
dxc4 {[%clk 0:02:05.9]} 13. Bxc4 {[%clk 0:02:31.4]} 13... b6 {[%clk 0:01:47.4]}
14. O-O {[%clk 0:02:08.1]} 14... Ba6 {[%clk 0:01:39.2]} 15. Rfe1 {[%clk
0:01:50]} 15... Bxc4 {[%clk 0:01:36.1]} 16. Qxc4 {[%clk 0:01:51.2]} 16... Rac8
{[%clk 0:01:35.6]} 17. Qd3 {[%clk 0:01:25.2]} 17... Nef6 {[%clk 0:01:23.2]} 18.
c4 {[%clk 0:01:14.8]} 18... Rfd8 {[%clk 0:01:21.4]} 19. Qb3 {[%clk 0:01:12.3]}
19... Rc6 {[%clk 0:01:02]} 20. Bd2 {[%clk 0:00:51.3]} 20... Qf5 {[%clk
0:01:00.3]} 21. Bc3 {[%clk 0:00:48.9]} 21... Rdc8 {[%clk 0:00:56.3]} 22. Bb2
{[%clk 0:00:50.1]} 22... Ne8 {[%clk 0:00:39.8]} 23. d5 {[%clk 0:00:46]} 23...
exd5 {[%clk 0:00:39.2]} 24. cxd5 {[%clk 0:00:47.1]} 24... Rxc1 {[%clk 0:00:39]}
25. Bxc1 {[%clk 0:00:48.4]} 25... Nef6 {[%clk 0:00:36.7]} 26. Qa4 {[%clk
0:00:32.9]} 26... Qxd5 {[%clk 0:00:35.4]} 27. Qxa7 {[%clk 0:00:32.5]} 27... h6
{[%clk 0:00:34.9]} 28. Be3 {[%clk 0:00:32.7]} 28... Ra8 {[%clk 0:00:33.2]} 29.
Qc7 {[%clk 0:00:33.5]} 29... Rxa3 {[%clk 0:00:30.5]} 30. Bxb6 {[%clk 0:00:23.8]}
30... Rd3 {[%clk 0:00:24.5]} 31. Be3 {[%clk 0:00:22.7]} 31... Rd1 {[%clk
0:00:24.6]} 32. Qc8+ {[%clk 0:00:23.8]} 32... Nf8 {[%clk 0:00:19.4]} 33. h3
{[%clk 0:00:23.2]} 33... Rxe1+ {[%clk 0:00:18]} 34. Nxe1 {[%clk 0:00:25.1]}
34... Qe6 {[%clk 0:00:18.2]} 35. Qc2 {[%clk 0:00:23]} 35... Nd5 {[%clk
0:00:18.4]} 36. Bd2 {[%clk 0:00:23.6]} 36... Ng6 {[%clk 0:00:18.3]} 37. Nf3
{[%clk 0:00:25]} 37... Ngf4 {[%clk 0:00:18.1]} 38. Qd1 {[%clk 0:00:24.5]} 38...
Ne2+ {[%clk 0:00:16.4]} 39. Kf1 {[%clk 0:00:25]} 39... Nef4 {[%clk 0:00:15.8]}
40. Ne1 {[%clk 0:00:23.6]} 40... Qa6+ {[%clk 0:00:15]} 41. Kg1 {[%clk
0:00:24.2]} 41... Ne2+ {[%clk 0:00:15.5]} 42. Kh1 {[%clk 0:00:24.5]} 42... Qc4
{[%clk 0:00:14.4]} 43. Nf3 {[%clk 0:00:23.7]} 43... Ndc3 {[%clk 0:00:14.3]} 44.
Qe1 {[%clk 0:00:24.4]} 44... Ne4 {[%clk 0:00:14.5]} 45. Be3 {[%clk 0:00:24.8]}
45... N2c3 {[%clk 0:00:13.2]} 46. Qa1 {[%clk 0:00:24.5]} 46... Kh7 {[%clk
0:00:12.8]} 47. Nd4 {[%clk 0:00:25.3]} 47... Qd3 {[%clk 0:00:12.6]} 48. Qe1
{[%clk 0:00:24.4]} 48... Nd5 {[%clk 0:00:12.8]} 49. Nf5 {[%clk 0:00:20.8]} 49...
Nxe3 {[%clk 0:00:12.1]} 50. Nxe3 {[%clk 0:00:22.7]} 50... Qd2 {[%clk 0:00:11.6]}
51. Qxd2 {[%clk 0:00:23]} 51... Nxd2 {[%clk 0:00:12.4]} 52. Kh2 {[%clk
0:00:24.9]} 52... g6 {[%clk 0:00:13]} 53. Kg3 {[%clk 0:00:26.8]} 53... f5 {[%clk
0:00:13.7]} 54. Kf4 {[%clk 0:00:28.3]} 54... Ne4 {[%clk 0:00:12.8]} 55. f3
{[%clk 0:00:29.2]} 55... Nd2 {[%clk 0:00:12.6]} 56. Ke5 {[%clk 0:00:30.3]} 56...
Kg7 {[%clk 0:00:13.2]} 57. g4 {[%clk 0:00:30.1]} 57... fxg4 {[%clk 0:00:12.9]}
58. hxg4 {[%clk 0:00:31.5]} 58... Nxf3+ {[%clk 0:00:13.5]} 59. Kf4 {[%clk
0:00:32.3]} 59... Nd4 {[%clk 0:00:13.5]} 60. Nd5 {[%clk 0:00:32.4]} 60... Ne6+
{[%clk 0:00:13]} 61. Ke5 {[%clk 0:00:33.7]} 61... h5 {[%clk 0:00:13.1]} 62. gxh5
{[%clk 0:00:32.8]} 62... gxh5 {[%clk 0:00:13.4]} 63. Kxe6 {[%clk 0:00:33.9]}
63... h4 {[%clk 0:00:13.6]} 64. Nf4 {[%clk 0:00:34.9]} 64... h3 {[%clk
0:00:12.9]} 65. Nxh3 {[%clk 0:00:36]} 1/2-1/2

[Event "*** MasterClass Titled Tuesday Blitz"]
[Site "Chess.com"]
[Date "2017.07.04"]
[Round "3"]
[White "yurisolo"]
[Black "DanielNaroditsky"]
[Result "1-0"]
[WhiteElo "2550"]
[BlackElo "2719"]
[TimeControl "180+2"]
[EndTime "13:40:02 PDT"]
[Termination "yurisolo won by resignation"]

1. e4 {[%clk 0:03:01.9]} 1... e5 {[%clk 0:03:00.6]} 2. Nf3 {[%clk 0:03:03]} 2...
Nc6 {[%clk 0:03:02.1]} 3. Bb5 {[%clk 0:03:03.5]} 3... a6 {[%clk 0:03:02.4]} 4.
Ba4 {[%clk 0:03:04.8]} 4... Nf6 {[%clk 0:03:03.8]} 5. O-O {[%clk 0:03:05.9]}
5... Be7 {[%clk 0:03:05]} 6. Re1 {[%clk 0:03:06.9]} 6... b5 {[%clk 0:03:04.7]}
7. Bb3 {[%clk 0:03:08.1]} 7... d6 {[%clk 0:03:04.9]} 8. c3 {[%clk 0:03:09.4]}
8... O-O {[%clk 0:03:04.9]} 9. h3 {[%clk 0:03:10.9]} 9... Na5 {[%clk 0:03:00.1]}
10. Bc2 {[%clk 0:03:11.8]} 10... c5 {[%clk 0:02:58.2]} 11. d4 {[%clk 0:03:13.7]}
11... Nd7 {[%clk 0:02:57.2]} 12. Nbd2 {[%clk 0:03:12.9]} 12... exd4 {[%clk
0:02:58.1]} 13. cxd4 {[%clk 0:03:13.7]} 13... Nc6 {[%clk 0:02:58.5]} 14. d5
{[%clk 0:03:09.7]} 14... Nce5 {[%clk 0:02:57]} 15. a4 {[%clk 0:03:11.2]} 15...
Bb7 {[%clk 0:02:55.5]} 16. Qe2 {[%clk 0:02:58.8]} 16... Bf6 {[%clk 0:02:50.3]}
17. Nxe5 {[%clk 0:02:36.1]} 17... Nxe5 {[%clk 0:02:50]} 18. axb5 {[%clk
0:02:37.1]} 18... axb5 {[%clk 0:02:50.9]} 19. Rxa8 {[%clk 0:02:38.2]} 19... Qxa8
{[%clk 0:02:46.9]} 20. Qxb5 {[%clk 0:02:37.9]} 20... Ba6 {[%clk 0:02:48]} 21.
Qb3 {[%clk 0:02:37.8]} 21... c4 {[%clk 0:02:30.7]} 22. Qa3 {[%clk 0:02:08.8]}
22... Rd8 {[%clk 0:02:11.5]} 23. Nb1 {[%clk 0:01:54.2]} 23... Nd3 {[%clk
0:02:03]} 24. Bxd3 {[%clk 0:01:50.2]} 24... cxd3 {[%clk 0:02:03.8]} 25. Bf4
{[%clk 0:01:50.1]} 25... Qb7 {[%clk 0:01:46.9]} 26. b3 {[%clk 0:01:24]} 26...
Qb6 {[%clk 0:01:28]} 27. Be3 {[%clk 0:01:21.9]} 27... Qb7 {[%clk 0:01:28.1]} 28.
Bf4 {[%clk 0:01:22.7]} 28... Qb6 {[%clk 0:01:20.3]} 29. Be3 {[%clk 0:01:23.4]}
29... Qb7 {[%clk 0:01:20.1]} 30. Nd2 {[%clk 0:01:16.2]} 30... Bc3 {[%clk
0:01:18.4]} 31. Rc1 {[%clk 0:01:11.3]} 31... Bb4 {[%clk 0:01:17.4]} 32. Qa4
{[%clk 0:01:06.8]} 32... Ra8 {[%clk 0:01:14.9]} 33. Qc6 {[%clk 0:00:41.5]} 33...
Qb8 {[%clk 0:01:13.3]} 34. Ra1 {[%clk 0:00:26.6]} 34... Bb7 {[%clk 0:00:57.1]}
35. Rxa8 {[%clk 0:00:27]} 35... Bxa8 {[%clk 0:00:56.3]} 36. Qc4 {[%clk
0:00:16.8]} 36... h6 {[%clk 0:00:44.8]} 37. Qxd3 {[%clk 0:00:17]} 37... Qe8
{[%clk 0:00:42.9]} 38. Nc4 {[%clk 0:00:17.1]} 38... Bb7 {[%clk 0:00:42.8]} 39.
Bf4 {[%clk 0:00:16]} 39... Qb5 {[%clk 0:00:41.7]} 40. Qg3 {[%clk 0:00:14.8]}
40... Qe8 {[%clk 0:00:29]} 41. Bxh6 {[%clk 0:00:13.7]} 41... g6 {[%clk
0:00:28.3]} 42. f3 {[%clk 0:00:14.1]} 42... Qe7 {[%clk 0:00:25.9]} 43. Bf4
{[%clk 0:00:14.6]} 43... Bc5+ {[%clk 0:00:26.6]} 44. Kh2 {[%clk 0:00:14.8]}
44... Qf6 {[%clk 0:00:25.5]} 45. Bxd6 {[%clk 0:00:14.3]} 45... Ba7 {[%clk
0:00:25.6]} 46. Be5 {[%clk 0:00:14.8]} 46... Qa6 {[%clk 0:00:25.2]} 47. Qh4
{[%clk 0:00:13.5]} 47... f6 {[%clk 0:00:24.3]} 48. Qxf6 {[%clk 0:00:14.2]} 48...
Qxf6 {[%clk 0:00:20.6]} 49. Bxf6 {[%clk 0:00:16.1]} 49... Bb8+ {[%clk
0:00:21.3]} 50. Be5 {[%clk 0:00:16.5]} 50... Ba7 {[%clk 0:00:22.6]} 51. g4
{[%clk 0:00:17.1]} 51... Ba6 {[%clk 0:00:24.4]} 52. Kg3 {[%clk 0:00:17.5]} 1-0

[Event "*** MasterClass Titled Tuesday Blitz"]
[Site "Chess.com"]
[Date "2017.07.04"]
[Round "3"]
[White "vpantev"]
[Black "AkshatChandra"]
[Result "1-0"]
[WhiteElo "2446"]
[BlackElo "2653"]
[TimeControl "180+2"]
[EndTime "13:40:13 PDT"]
[Termination "vpantev won by resignation"]

1. d4 {[%clk 0:03:01.6]} 1... Nf6 {[%clk 0:03:00.9]} 2. Nf3 {[%clk 0:03:02.1]}
2... d5 {[%clk 0:03:00.7]} 3. c4 {[%clk 0:03:02.6]} 3... e6 {[%clk 0:03:02]} 4.
g3 {[%clk 0:03:02.1]} 4... dxc4 {[%clk 0:02:57.4]} 5. Qa4+ {[%clk 0:03:02.5]}
5... c6 {[%clk 0:02:55.9]} 6. Qxc4 {[%clk 0:03:03]} 6... b5 {[%clk 0:02:57.6]}
7. Qc2 {[%clk 0:03:03.3]} 7... Bb7 {[%clk 0:02:58.8]} 8. a4 {[%clk 0:03:03.1]}
8... Nbd7 {[%clk 0:02:59.8]} 9. Bg2 {[%clk 0:03:03.7]} 9... a6 {[%clk
0:02:53.3]} 10. Bg5 {[%clk 0:03:01.2]} 10... Rc8 {[%clk 0:02:39]} 11. axb5
{[%clk 0:02:55.2]} 11... cxb5 {[%clk 0:02:39.4]} 12. Qd1 {[%clk 0:02:54.6]}
12... h6 {[%clk 0:02:36.7]} 13. Bxf6 {[%clk 0:02:54.8]} 13... Nxf6 {[%clk
0:02:37.4]} 14. Nbd2 {[%clk 0:02:55.5]} 14... Be7 {[%clk 0:02:33.4]} 15. O-O
{[%clk 0:02:55.7]} 15... O-O {[%clk 0:02:34.9]} 16. e3 {[%clk 0:02:55.5]} 16...
a5 {[%clk 0:02:31.4]} 17. Qb3 {[%clk 0:02:52.1]} 17... Bb4 {[%clk 0:02:28.9]}
18. Rfc1 {[%clk 0:02:48.8]} 18... Bd5 {[%clk 0:02:27.9]} 19. Qd3 {[%clk
0:02:48.7]} 19... Qb6 {[%clk 0:02:27.5]} 20. Ne5 {[%clk 0:02:41.9]} 20... Bxg2
{[%clk 0:02:19]} 21. Kxg2 {[%clk 0:02:42.3]} 21... Bd6 {[%clk 0:02:12.7]} 22.
Nef3 {[%clk 0:02:36.8]} 22... Nd5 {[%clk 0:02:09.2]} 23. Ne4 {[%clk 0:02:31.1]}
23... Nb4 {[%clk 0:02:07.1]} 24. Qd2 {[%clk 0:02:30.9]} 24... Be7 {[%clk
0:02:06.6]} 25. h4 {[%clk 0:02:16.6]} 25... Qb7 {[%clk 0:02:01.6]} 26. Nc3
{[%clk 0:02:11.2]} 26... Rc4 {[%clk 0:01:39.1]} 27. Qe2 {[%clk 0:02:09.4]} 27...
Rfc8 {[%clk 0:01:37.1]} 28. Kg1 {[%clk 0:02:09.9]} 28... Nd5 {[%clk 0:01:27.4]}
29. Ne5 {[%clk 0:02:00.3]} 29... Nxc3 {[%clk 0:01:17.1]} 30. bxc3 {[%clk
0:01:59.9]} 30... Rxc3 {[%clk 0:01:19]} 31. Rcb1 {[%clk 0:02:00.4]} 31... Rc2
{[%clk 0:01:14.8]} 32. Qf1 {[%clk 0:01:45.4]} 32... Bb4 {[%clk 0:01:09.2]} 33.
Nd3 {[%clk 0:01:44.8]} 33... Bc3 {[%clk 0:01:04.7]} 34. Ra3 {[%clk 0:01:41.7]}
34... b4 {[%clk 0:00:43.1]} 35. Rxa5 {[%clk 0:01:39.2]} 35... Rd2 {[%clk
0:00:35.6]} 36. Nc5 {[%clk 0:01:36.3]} 36... Qf3 {[%clk 0:00:30.4]} 37. Qg2
{[%clk 0:01:36.4]} 37... Qf5 {[%clk 0:00:24.4]} 38. Rf1 {[%clk 0:01:32.7]} 38...
b3 {[%clk 0:00:23.5]} 39. Ra8 {[%clk 0:01:33.1]} 39... Rxa8 {[%clk 0:00:12]} 40.
Qxa8+ {[%clk 0:01:32.9]} 40... Kh7 {[%clk 0:00:13.4]} 41. Nxb3 {[%clk
0:01:33.8]} 41... Rb2 {[%clk 0:00:13.5]} 42. Nc5 {[%clk 0:01:34.5]} 42... e5
{[%clk 0:00:12.4]} 43. dxe5 {[%clk 0:01:31.9]} 43... Bxe5 {[%clk 0:00:10.3]} 44.
Qe4 {[%clk 0:01:32.3]} 44... Qxe4 {[%clk 0:00:11.5]} 45. Nxe4 {[%clk 0:01:32.7]}
45... Rc2 {[%clk 0:00:10.7]} 46. Kg2 {[%clk 0:01:33.3]} 46... f5 {[%clk
0:00:11.9]} 47. Kf3 {[%clk 0:01:30]} 47... fxe4+ {[%clk 0:00:10.6]} 48. Kxe4
{[%clk 0:01:31]} 48... Bf6 {[%clk 0:00:11.5]} 49. Kf3 {[%clk 0:01:31.6]} 49...
Kg6 {[%clk 0:00:12]} 50. Rb1 {[%clk 0:01:31.9]} 50... h5 {[%clk 0:00:12.1]} 51.
Rb5 {[%clk 0:01:31.4]} 51... Ra2 {[%clk 0:00:10.2]} 52. Rb1 {[%clk 0:01:31.7]}
52... Bc3 {[%clk 0:00:11]} 53. Rc1 {[%clk 0:01:31.6]} 53... Bb4 {[%clk 0:00:11]}
54. Rb1 {[%clk 0:01:32.2]} 54... Ba5 {[%clk 0:00:12.3]} 55. Rc1 {[%clk
0:01:32.8]} 55... Kf6 {[%clk 0:00:13.6]} 56. Rd1 {[%clk 0:01:33.6]} 56... g6
{[%clk 0:00:14.3]} 57. Rc1 {[%clk 0:01:34.4]} 57... Bb4 {[%clk 0:00:14.8]} 58.
Rb1 {[%clk 0:01:34.7]} 58... Ba5 {[%clk 0:00:16.2]} 59. Rc1 {[%clk 0:01:35.7]}
59... Rb2 {[%clk 0:00:17.8]} 60. Rd1 {[%clk 0:01:36.6]} 60... Bb4 {[%clk
0:00:19.1]} 61. Rc1 {[%clk 0:01:37.6]} 61... Ke5 {[%clk 0:00:19.3]} 62. Rd1
{[%clk 0:01:38.3]} 62... Ra2 {[%clk 0:00:14.2]} 63. Rc1 {[%clk 0:01:39]} 63...
Ra7 {[%clk 0:00:14]} 64. Rb1 {[%clk 0:01:38.5]} 64... Rf7+ {[%clk 0:00:15.3]}
65. Kg2 {[%clk 0:01:39.5]} 65... Bd2 {[%clk 0:00:15.1]} 66. Rd1 {[%clk
0:01:39.7]} 66... Bb4 {[%clk 0:00:09.5]} 67. Rb1 {[%clk 0:01:40]} 67... Ba5
{[%clk 0:00:09.8]} 68. Rb5+ {[%clk 0:01:40.6]} 68... Kf6 {[%clk 0:00:06.6]} 69.
Rxa5 {[%clk 0:01:41.1]} 69... Rb7 {[%clk 0:00:06.6]} 70. Rg5 {[%clk 0:01:38.8]}
70... Rb2 {[%clk 0:00:06.8]} 71. g4 {[%clk 0:01:38.3]} 71... hxg4 {[%clk
0:00:06.5]} 72. Rxg4 {[%clk 0:01:39.1]} 72... Ra2 {[%clk 0:00:06.5]} 73. Rb4
{[%clk 0:01:38.4]} 73... Rc2 {[%clk 0:00:06.5]} 74. Rb5 {[%clk 0:01:38.9]} 74...
Ra2 {[%clk 0:00:07.3]} 75. h5 {[%clk 0:01:39.3]} 75... g5 {[%clk 0:00:06.9]} 76.
Rb6+ {[%clk 0:01:40.1]} 76... Kf7 {[%clk 0:00:07.5]} 77. Rg6 {[%clk 0:01:39.8]}
77... Ra5 {[%clk 0:00:09.2]} 78. f3 {[%clk 0:01:39.3]} 78... Rf5 {[%clk
0:00:09.5]} 79. Kg3 {[%clk 0:01:39.8]} 79... Re5 {[%clk 0:00:07.4]} 80. e4
{[%clk 0:01:39.9]} 80... Ra5 {[%clk 0:00:08.7]} 81. Kg4 {[%clk 0:01:40.6]} 81...
Ra1 {[%clk 0:00:10.4]} 82. Rxg5 {[%clk 0:01:41.5]} 82... Kf6 {[%clk 0:00:10.5]}
83. Rf5+ {[%clk 0:01:42.1]} 83... Ke6 {[%clk 0:00:11.5]} 84. h6 {[%clk
0:01:40.7]} 84... Rg1+ {[%clk 0:00:13]} 85. Kh5 {[%clk 0:01:39.3]} 85... Rh1+
{[%clk 0:00:14]} 86. Kg6 {[%clk 0:01:40.2]} 86... Rg1+ {[%clk 0:00:15.8]} 87.
Rg5 {[%clk 0:01:41.1]} 1-0